fUSD/lending_fUSD_20250502
["ID","MTS","AMOUNT","RATE_DAILY","PERIOD"]
[359588750,1746167441235,-2881.83,0.00019985,2]
[359588751,1746167441247,-450.0,0.00019985,2]
[359588752,1746167441258,-450.0,0.00019985,2]
[359588753,1746167441269,-2728.045707,0.00019985,2]
[359588754,1746167441279,-600.24,0.00019985,2]
[359588755,1746167441289,-450.0,0.00019985,2]
[359588756,1746167441300,-672.75,0.00019985,2]
[359588757,1746167441310,-486.25,0.00019985,2]
[359588758,1746167441320,-899.46,0.00019985,2]
[359588759,1746167441329,-5333.28,0.00019985,2]
[359588760,1746167441339,-879.96,0.00019985,2]
[359588761,1746167441348,-484.5,0.00019985,2]
[359588762,1746167441358,-450.0,0.00019985,2]
[359588763,1746167441368,-271.1320085,0.00019985,2]
[359588764,1746167441377,-1056.11,0.00019985,2]
[359588765,1746167441386,-450.0,0.00019985,2]
[359588766,1746167441395,-726.83,0.00019985,2]
[359588767,1746167441405,-1642.59,0.00019985,2]
[359588768,1746167441415,-450.0,0.00019985,2]
[359588769,1746167441425,-498.55,0.00019985,2]
[359588770,1746167441434,-642.64,0.00019985,2]
[359588771,1746167441445,-513.36,0.00019985,2]
[359588772,1746167441456,-487.82,0.00019985,2]
[359588773,1746167441466,-875.68,0.00019985,2]
[359588774,1746167441476,-848.62,0.00019985,2]
[359588775,1746167441486,-598.98,0.00019985,2]
[359588776,1746167441496,-1270.57,0.00019985,2]
[359588777,1746167441505,-450.0,0.00019985,2]
[359588778,1746167441514,-2344.76,0.00019985,2]
[359588779,1746167441523,-498.56,0.00019985,2]
[359588780,1746167441533,-540.77,0.00019985,2]
[359588781,1746167441542,-3020.04,0.00019985,2]
[359588782,1746167441551,-450.0,0.00019985,2]
[359588783,1746167441561,-899.04,0.00019985,2]
[359588784,1746167441570,-484.57,0.00019985,2]
[359588785,1746167441579,-3696.76,0.00019985,2]
[359588786,1746167441589,-450.0,0.00019985,2]
[359588787,1746167441598,-450.0,0.00019985,2]
[359588788,1746167441607,-611.94,0.00019985,2]
[359588789,1746167441616,-751.06,0.00019985,2]
[359588790,1746167441626,-450.0,0.00019985,2]
[359588791,1746167441635,-704.98,0.00019985,2]
[359588792,1746167441645,-1143.45,0.00019985,2]
[359588793,1746167441654,-460.88,0.00019985,2]
[359588794,1746167441665,-494.51,0.00019985,2]
[359588795,1746167441674,-450.0,0.00019985,2]
[359588796,1746167441684,-450.0,0.00019985,2]
[359588797,1746167441693,-450.0,0.00019985,2]
[359588798,1746167441703,-450.0,0.00019985,2]
[359588799,1746167441713,-1320.29,0.00019985,2]
[359588800,1746167441723,-1517.6,0.00019985,2]
[359588801,1746167441732,-464.97,0.00019985,2]
[359588802,1746167441742,-450.0,0.00019985,2]
[359588803,1746167441751,-450.0,0.00019985,2]
[359588804,1746167441760,-450.0,0.00019985,2]
[359588805,1746167441770,-2756.94,0.00019985,2]
[359588806,1746167441779,-505.88,0.00019985,2]
[359588807,1746167441789,-705.68,0.00019985,2]
[359588808,1746167441799,-172.94262954,0.00019985,2]
[359588809,1746167441809,-450.0,0.00019985,2]
[359588810,1746167441818,-1526.96,0.00019985,2]
[359588811,1746167441827,-604.44,0.00019985,2]
[359588812,1746167441837,-476.81,0.00019985,2]
[359588813,1746167441846,-1052.38,0.00019985,2]
[359588814,1746167441855,-466.27,0.00019985,2]
[359588815,1746167441864,-1100.78,0.00019985,2]
[359588816,1746167441874,-450.0,0.00019985,2]
[359588817,1746167441883,-151.53,0.00019985,2]
[359588818,1746167441892,-8861.5226523,0.00019986,2]
[359588819,1746167441902,-2947.5942252,0.00019986,2]
[359588820,1746167441911,-83529.2529409,0.00019986,2]
[359588821,1746167441923,-151.53,0.00019991,2]
[359588822,1746167441932,-151.53,0.00019997,2]
[359588823,1746167441941,-536.82485784,0.00019999,2]
[359588824,1746167441951,-300.0,0.00019999,2]
[359588825,1746167441960,-300.0,0.00019999,2]
[359588826,1746167441969,-546.53360989,0.00019999,2]
[359588827,1746167441978,-614.99,0.00019999,2]
[359588828,1746167441987,-450.0,0.00019999,2]
[359588829,1746167441996,-450.0,0.00019999,2]
[359588830,1746167442005,-255.88549319,0.00019999,2]
[359588831,1746167442015,-446.35235035,0.00019999,2]
[359588832,1746167442025,-450.0,0.00019999,2]
[359588833,1746167442034,-450.0,0.00019999,2]
[359588834,1746167442043,-450.0,0.00019999,2]
[359588835,1746167442052,-450.0,0.00019999,2]
[359588836,1746167442061,-711.29,0.00019999,2]
[359588837,1746167442071,-450.0,0.00019999,2]
[359588838,1746167442083,-559.62,0.00019999,2]
[359588839,1746167442092,-471.42,0.00019999,2]
[359588840,1746167442102,-450.0,0.00019999,2]
[359588841,1746167442111,-450.0,0.00019999,2]
[359588842,1746167442121,-450.0,0.00019999,2]
[359588843,1746167442131,-1029.83,0.00019999,2]
[359588844,1746167442140,-526.25612167,0.00019999,2]
[359588845,1746167442150,-450.0,0.00019999,2]
[359588846,1746167442160,-1151.64,0.00019999,2]
[359588847,1746167442173,-541.16,0.00019999,2]
[359588848,1746167442183,-635.94,0.00019999,2]
[359588849,1746167442193,-450.0,0.00019999,2]
[359588850,1746167442203,-450.0,0.00019999,2]
[359588851,1746167442212,-450.0,0.00019999,2]
[359588852,1746167442221,-3227.5,0.00019999,2]
[359588853,1746167442231,-420.55718536,0.00019999,2]
[359588854,1746167442240,-166.2246764,0.00019999,2]
[359588855,1746167442250,-450.0,0.00019999,2]
[359588856,1746167442260,-450.0,0.00019999,2]
[359588857,1746167442270,-524.31,0.00019999,2]
[359588858,1746167442280,-450.0,0.00019999,2]
[359588859,1746167442289,-450.0,0.00019999,2]
[359588860,1746167442298,-836.73,0.00019999,2]
[359588861,1746167442307,-450.0,0.00019999,2]
[359588862,1746167442317,-450.0,0.00019999,2]
[359588863,1746167442326,-450.0,0.00019999,2]
[359588864,1746167442335,-500.0,0.00019999,2]
[359588865,1746167442345,-4026.76,0.00019999,2]
[359588866,1746167442354,-1000.0,0.00019999,2]
[359588867,1746167442363,-450.0,0.00019999,2]
[359588868,1746167442372,-450.0,0.00019999,2]
[359588869,1746167442382,-984.7,0.00019999,2]
[359588870,1746167442391,-650.73,0.00019999,2]
[359588871,1746167442400,-450.0,0.00019999,2]
[359588872,1746167442410,-450.0,0.00019999,2]
[359588873,1746167442422,-450.0,0.00019999,2]
[359588874,1746167442432,-450.0,0.00019999,2]
[359588875,1746167442442,-2077.65,0.00019999,2]
[359588876,1746167442451,-450.0,0.00019999,2]
[359588877,1746167442460,-450.0,0.00019999,2]
[359588878,1746167442469,-450.0,0.00019999,2]
[359588879,1746167442479,-450.0,0.00019999,2]
[359588880,1746167442489,-198.04898131,0.00019999,2]
[359588881,1746167442498,-472.75584464,0.00019999,2]
[359588882,1746167442508,-450.0,0.00019999,2]
[359588883,1746167442518,-460.35,0.00019999,2]
[359588884,1746167442528,-450.0,0.00019999,2]
[359588885,1746167442537,-468.71,0.00019999,2]
[359588886,1746167442548,-904.26,0.00019999,2]
[359588887,1746167442558,-450.0,0.00019999,2]
[359588888,1746167442567,-450.0,0.00019999,2]
[359588889,1746167442578,-468.46,0.00019999,2]
[359588890,1746167442587,-450.0,0.00019999,2]
[359588891,1746167442597,-324.99534254,0.00019999,2]
[359588892,1746167442607,-450.0,0.00019999,2]
[359588893,1746167442618,-450.0,0.00019999,2]
[359588894,1746167442628,-260.07111918,0.00019999,2]
[359588895,1746167442638,-822.57,0.00019999,2]
[359588896,1746167442648,-1329.64,0.00019999,2]
[359588897,1746167442658,-479.67427224,0.00019999,2]
[359588898,1746167442671,-502.1,0.00019999,2]
[359588899,1746167442681,-450.0,0.00019999,2]
[359588900,1746167442691,-450.0,0.00019999,2]
[359588901,1746167442700,-450.0,0.00019999,2]
[359588902,1746167442709,-1696.25,0.00019999,2]
[359588903,1746167442719,-500.0,0.00019999,2]
[359588904,1746167442729,-500.0,0.00019999,2]
[359588905,1746167442738,-500.0,0.00019999,2]
[359588906,1746167442748,-500.0,0.00019999,2]
[359588907,1746167442757,-500.0,0.00019999,2]
[359588908,1746167442767,-1204.07,0.00019999,2]
[359588909,1746167442777,-500.0,0.00019999,2]
[359588910,1746167442787,-350.41375353,0.00019999,2]
[359588911,1746167442797,-500.0,0.00019999,2]
[359588912,1746167442807,-500.0,0.00019999,2]
[359588913,1746167442816,-500.0,0.00019999,2]
[359588914,1746167442826,-500.0,0.00019999,2]
[359588915,1746167442835,-500.0,0.00019999,2]
[359588916,1746167442845,-500.0,0.00019999,2]
[359588917,1746167442854,-500.0,0.00019999,2]
[359588918,1746167442863,-500.0,0.00019999,2]
[359588919,1746167442873,-500.0,0.00019999,2]
[359588920,1746167442882,-500.0,0.00019999,2]
[359588921,1746167442892,-500.0,0.00019999,2]
[359588922,1746167442902,-500.0,0.00019999,2]
[359588923,1746167442911,-450.0,0.00019999,2]
[359588924,1746167442926,-335.75328962,0.00019999,2]
[359588925,1746167442935,-660.96,0.00019999,2]
[359588926,1746167442945,-1014.98,0.00019999,2]
[359588927,1746167442954,-506.96314691,0.00019999,2]
[359588928,1746167442964,-450.0,0.00019999,2]
[359588929,1746167442973,-450.0,0.00019999,2]
[359588930,1746167442983,-450.0,0.00019999,2]
[359588931,1746167442992,-450.0,0.00019999,2]
[359588932,1746167443002,-450.32,0.00019999,2]
[359588933,1746167443012,-809.85,0.00019999,2]
[359588934,1746167443021,-450.0,0.00019999,2]
[359588935,1746167443031,-450.0,0.00019999,2]
[359588936,1746167443041,-450.0,0.00019999,2]
[359588937,1746167443050,-450.0,0.00019999,2]
[359588938,1746167443060,-450.0,0.00019999,2]
[359588939,1746167443070,-478.71395855,0.00019999,2]
[359588943,1746167443296,-481.24255364,0.00019999,2]
[359588944,1746167443306,-237.32068191,0.00019999,2]
[359588945,1746167443316,-488.12,0.00019999,2]
[359588946,1746167443325,-450.0,0.00019999,2]
[359588947,1746167443335,-450.0,0.00019999,2]
[359588948,1746167443344,-1932.83,0.00019999,2]
[359588949,1746167443354,-450.0,0.00019999,2]
[359588950,1746167443363,-450.0,0.00019999,2]
[359588951,1746167443372,-1328.43,0.00019999,2]
[359588952,1746167443382,-450.0,0.00019999,2]
[359588953,1746167443391,-450.0,0.00019999,2]
[359588954,1746167443401,-450.0,0.00019999,2]
[359588955,1746167443410,-450.0,0.00019999,2]
[359588956,1746167443421,-450.0,0.00019999,2]
[359588957,1746167443432,-450.0,0.00019999,2]
[359588958,1746167443442,-317.64203809,0.00019999,2]
[359588959,1746167443451,-1019.41,0.00019999,2]
[359588960,1746167443460,-1361.65,0.00019999,2]
[359588961,1746167443469,-450.0,0.00019999,2]
[359588962,1746167443480,-450.0,0.00019999,2]
[359588963,1746167443489,-450.0,0.00019999,2]
[359588964,1746167443498,-478.04118226,0.00019999,2]
[359588965,1746167443507,-716.54,0.00019999,2]
[359588966,1746167443517,-479.62046989,0.00019999,2]
[359588967,1746167443526,-450.0,0.00019999,2]
[359588968,1746167443535,-450.0,0.00019999,2]
[359588969,1746167443545,-632.11,0.00019999,2]
[359588970,1746167443555,-516.29378622,0.00019999,2]
[359588971,1746167443565,-478.36009512,0.00019999,2]
[359588972,1746167443575,-621.61,0.00019999,2]
[359588973,1746167443585,-519.01346839,0.00019999,2]
[359588974,1746167443596,-850.36,0.00019999,2]
[359588975,1746167443606,-500.0,0.00019999,2]
[359588976,1746167443616,-500.0,0.00019999,2]
[359588977,1746167443626,-500.0,0.00019999,2]
[359588978,1746167443636,-500.0,0.00019999,2]
[359588979,1746167443645,-1188.72,0.00019999,2]
[359588980,1746167443655,-500.0,0.00019999,2]
[359588981,1746167443665,-500.0,0.00019999,2]
[359588982,1746167443678,-450.0,0.00019999,2]
[359588983,1746167443688,-500.0,0.00019999,2]
[359588984,1746167443698,-500.0,0.00019999,2]
[359588985,1746167443707,-500.0,0.00019999,2]
[359588986,1746167443718,-500.0,0.00019999,2]
[359588987,1746167443728,-500.0,0.00019999,2]
[359588988,1746167443738,-500.0,0.00019999,2]
[359588989,1746167443748,-500.0,0.00019999,2]
[359588990,1746167443757,-500.0,0.00019999,2]
[359588991,1746167443767,-449.73983441,0.00019999,2]
[359588993,1746167443777,-471.51654423,0.00019999,2]
[359588994,1746167443787,-552.58658292,0.00019999,2]
[359588995,1746167443797,-645.77,0.00019999,2]
[359588996,1746167443807,-478.29285911,0.00019999,2]
[359588997,1746167443816,-1018.85,0.00019999,2]
[359588998,1746167443827,-450.0,0.00019999,2]
[359588999,1746167443837,-450.0,0.00019999,2]
[359589000,1746167443847,-450.0,0.00019999,2]
[359589001,1746167443857,-421.67477482,0.00019999,2]
[359589002,1746167443868,-450.0,0.00019999,2]
[359589003,1746167443879,-595.36081012,0.00019999,2]
[359589004,1746167443889,-450.0,0.00019999,2]
[359589005,1746167443898,-450.0,0.00019999,2]
[359589006,1746167443909,-811.94,0.00019999,2]
[359589007,1746167443920,-481.36260393,0.00019999,2]
[359589008,1746167443930,-450.0,0.00019999,2]
[359589009,1746167443939,-541.66951545,0.00019999,2]
[359589010,1746167443949,-572.36824906,0.00019999,2]
[359589011,1746167443958,-556.49207029,0.00019999,2]
[359589012,1746167443967,-450.0,0.00019999,2]
[359589013,1746167443979,-450.0,0.00019999,2]
[359589014,1746167443989,-545.37074851,0.00019999,2]
[359589015,1746167443999,-520.69423057,0.00019999,2]
[359589016,1746167444009,-675.84,0.00019999,2]
[359589017,1746167444020,-450.0,0.00019999,2]
[359589018,1746167444030,-450.0,0.00019999,2]
[359589019,1746167444040,-651.05,0.00019999,2]
[359589020,1746167444050,-1576.93,0.00019999,2]
[359589021,1746167444059,-450.0,0.00019999,2]
[359589022,1746167444070,-450.0,0.00019999,2]
[359589023,1746167444085,-1984.75,0.00019999,2]
[359589024,1746167444094,-450.0,0.00019999,2]
[359589025,1746167444104,-470.72173078,0.00019999,2]
[359589026,1746167444114,-450.0,0.00019999,2]
[359589027,1746167444124,-450.0,0.00019999,2]
[359589028,1746167444134,-471.39131254,0.00019999,2]
[359589029,1746167444144,-1013.12,0.00019999,2]
[359589030,1746167444154,-474.85670226,0.00019999,2]
[359589031,1746167444163,-579.65568725,0.00019999,2]
[359589032,1746167444177,-475.24210284,0.00019999,2]
[359589033,1746167444187,-450.0,0.00019999,2]
[359589034,1746167444196,-450.0,0.00019999,2]
[359589035,1746167444206,-2040.93,0.00019999,2]
[359589036,1746167444215,-483.44313905,0.00019999,2]
[359589037,1746167444225,-450.0,0.00019999,2]
[359589038,1746167444235,-332.7319738,0.00019999,2]
[359589039,1746167444244,-2564.17,0.00019999,2]
[359589040,1746167444253,-699.02,0.00019999,2]
[359589041,1746167444262,-531.43,0.00019999,2]
[359589042,1746167444273,-450.0,0.00019999,2]
[359589044,1746167444283,-918.4,0.00019999,2]
[359589045,1746167444294,-1154.17,0.00019999,2]
[359589046,1746167444304,-450.0,0.00019999,2]
[359589047,1746167444314,-450.0,0.00019999,2]
[359589048,1746167444325,-481.77396082,0.00019999,2]
[359589049,1746167444334,-450.0,0.00019999,2]
[359589050,1746167444344,-450.0,0.00019999,2]
[359589051,1746167444354,-476.27313817,0.00019999,2]
[359589052,1746167444363,-923.71,0.00019999,2]
[359589053,1746167444373,-450.0,0.00019999,2]
[359589054,1746167444383,-513.44314948,0.00019999,2]
[359589055,1746167444392,-450.0,0.00019999,2]
[359589056,1746167444402,-450.0,0.00019999,2]
[359589057,1746167444412,-450.0,0.00019999,2]
[359589058,1746167444424,-450.0,0.00019999,2]
[359589059,1746167444434,-825.92,0.00019999,2]
[359589060,1746167444443,-2339.12,0.00019999,2]
[359589061,1746167444452,-450.0,0.00019999,2]
[359589062,1746167444462,-450.0,0.00019999,2]
[359589063,1746167444472,-556.14,0.00019999,2]
[359589064,1746167444481,-603.42,0.00019999,2]
[359589065,1746167444491,-450.0,0.00019999,2]
[359589066,1746167444501,-767.06,0.00019999,2]
[359589067,1746167444511,-995.97,0.00019999,2]
[359589068,1746167444520,-1021.51,0.00019999,2]
[359589069,1746167444529,-528.00209753,0.00019999,2]
[359589070,1746167444538,-588.59856865,0.00019999,2]
[359589071,1746167444547,-528.0005807,0.00019999,2]
[359589072,1746167444556,-699.1,0.00019999,2]
[359589073,1746167444566,-616.63,0.00019999,2]
[359589074,1746167444575,-450.0,0.00019999,2]
[359589075,1746167444585,-911.9,0.00019999,2]
[359589076,1746167444594,-541.41,0.00019999,2]
[359589077,1746167444604,-450.0,0.00019999,2]
[359589078,1746167444613,-478.15755726,0.00019999,2]
[359589079,1746167444623,-522.07140595,0.00019999,2]
[359589080,1746167444633,-510.67624273,0.00019999,2]
[359589081,1746167444642,-485.96661095,0.00019999,2]
[359589082,1746167444651,-450.0,0.00019999,2]
[359589083,1746167444661,-557.66355342,0.00019999,2]
[359589084,1746167444674,-476.4633383,0.00019999,2]
[359589085,1746167444683,-450.0,0.00019999,2]
[359589086,1746167444693,-450.0,0.00019999,2]
[359589087,1746167444703,-487.21528465,0.00019999,2]
[359589088,1746167444712,-457.11,0.00019999,2]
[359589089,1746167444722,-543.58999611,0.00019999,2]
[359589090,1746167444731,-452.41,0.00019999,2]
[359589091,1746167444741,-480.71,0.00019999,2]
[359589092,1746167444751,-471.77946675,0.00019999,2]
[359589093,1746167444760,-475.9586103,0.00019999,2]
[359589094,1746167444770,-1417.08,0.00019999,2]
[359589095,1746167444779,-975.48,0.00019999,2]
[359589096,1746167444789,-450.0,0.00019999,2]
[359589097,1746167444799,-505.69879966,0.00019999,2]
[359589098,1746167444809,-450.0,0.00019999,2]
[359589099,1746167444818,-821.65,0.00019999,2]
[359589100,1746167444827,-614.72,0.00019999,2]
[359589101,1746167444836,-527.98627395,0.00019999,2]
[359589102,1746167444846,-493.94,0.00019999,2]
[359589103,1746167444855,-474.73630796,0.00019999,2]
[359589104,1746167444864,-568.33862263,0.00019999,2]
[359589105,1746167444874,-450.0,0.00019999,2]
[359589106,1746167444883,-475.92393356,0.00019999,2]
[359589107,1746167444893,-471.05231591,0.00019999,2]
[359589108,1746167444902,-470.0,0.00019999,2]
[359589109,1746167444911,-500.0,0.00019999,2]
[359589110,1746167444925,-500.0,0.00019999,2]
[359589111,1746167444934,-500.0,0.00019999,2]
[359589112,1746167444943,-450.0,0.00019999,2]
[359589113,1746167444953,-500.0,0.00019999,2]
[359589114,1746167444962,-450.0,0.00019999,2]
[359589115,1746167444971,-526.95490804,0.00019999,2]
[359589116,1746167444980,-450.0,0.00019999,2]
[359589117,1746167444990,-822.62,0.00019999,2]
[359589118,1746167444999,-484.36,0.00019999,2]
[359589119,1746167445009,-450.0,0.00019999,2]
[359589120,1746167445018,-450.0,0.00019999,2]
[359589121,1746167445028,-1356.12,0.00019999,2]
[359589122,1746167445037,-450.0,0.00019999,2]
[359589123,1746167445047,-450.0,0.00019999,2]
[359589124,1746167445056,-500.0,0.00019999,2]
[359589125,1746167445066,-500.0,0.00019999,2]
[359589126,1746167445079,-500.0,0.00019999,2]
[359589127,1746167445089,-500.0,0.00019999,2]
[359589128,1746167445099,-530.70042877,0.00019999,2]
[359589129,1746167445108,-613.96,0.00019999,2]
[359589130,1746167445119,-450.0,0.00019999,2]
[359589131,1746167445128,-552.30096776,0.00019999,2]
[359589132,1746167445138,-450.0,0.00019999,2]
[359589133,1746167445149,-4268.3,0.00019999,2]
[359589134,1746167445159,-537.91155507,0.00019999,2]
[359589135,1746167445169,-809.76,0.00019999,2]
[359589136,1746167445179,-1485.73,0.00019999,2]
[359589137,1746167445189,-1052.37,0.00019999,2]
[359589138,1746167445199,-450.0,0.00019999,2]
[359589139,1746167445209,-1823.55,0.00019999,2]
[359589140,1746167445218,-475.68788128,0.00019999,2]
[359589141,1746167445227,-450.0,0.00019999,2]
[359589142,1746167445238,-450.0,0.00019999,2]
[359589143,1746167445247,-627.10754496,0.00019999,2]
[359589144,1746167445257,-450.0,0.00019999,2]
[359589145,1746167445267,-450.0,0.00019999,2]
[359589146,1746167445276,-479.20352983,0.00019999,2]
[359589147,1746167445286,-576.86,0.00019999,2]
[359589148,1746167445295,-450.0,0.00019999,2]
[359589149,1746167445305,-642.01,0.00019999,2]
[359589150,1746167445315,-482.04692344,0.00019999,2]
[359589151,1746167445324,-450.0,0.00019999,2]
[359589152,1746167445334,-638.97,0.00019999,2]
[359589153,1746167445347,-1008.37,0.00019999,2]
[359589154,1746167445357,-478.66110505,0.00019999,2]
[359589155,1746167445366,-1084.84,0.00019999,2]
[359589156,1746167445376,-450.0,0.00019999,2]
[359589157,1746167445385,-526.44810028,0.00019999,2]
[359589158,1746167445395,-1059.06,0.00019999,2]
[359589159,1746167445405,-1663.11,0.00019999,2]
[359589160,1746167445414,-450.0,0.00019999,2]
[359589161,1746167445427,-450.0,0.00019999,2]
[359589162,1746167445437,-1021.44,0.00019999,2]
[359589163,1746167445447,-474.5058927,0.00019999,2]
[359589164,1746167445456,-3734.59,0.00019999,2]
[359589165,1746167445466,-486.94,0.00019999,2]
[359589166,1746167445476,-478.6696197,0.00019999,2]
[359589167,1746167445486,-523.20208212,0.00019999,2]
[359589168,1746167445496,-450.0,0.00019999,2]
[359589169,1746167445506,-483.37074986,0.00019999,2]
[359589170,1746167445516,-562.93,0.00019999,2]
[359589171,1746167445525,-1060.85,0.00019999,2]
[359589172,1746167445535,-9589.64,0.00019999,2]
[359589173,1746167445545,-483.56461967,0.00019999,2]
[359589174,1746167445555,-450.0,0.00019999,2]
[359589175,1746167445565,-1019.88,0.00019999,2]
[359589176,1746167445575,-450.0,0.00019999,2]
[359589177,1746167445585,-468.64426461,0.00019999,2]
[359589178,1746167445594,-564.89707459,0.00019999,2]
[359589179,1746167445604,-450.0,0.00019999,2]
[359589180,1746167445614,-1259.98,0.00019999,2]
[359589181,1746167445623,-514.61757493,0.00019999,2]
[359589182,1746167445633,-510.92426429,0.00019999,2]
[359589183,1746167445643,-472.54374558,0.00019999,2]
[359589184,1746167445653,-450.0,0.00019999,2]
[359589185,1746167445663,-175643.04,0.00019999,2]
[359589186,1746167445676,-450.0,0.00019999,2]
[359589187,1746167445686,-533.95367948,0.00019999,2]
[359589188,1746167445775,-450.0,0.00019999,2]
[359589189,1746167445784,-472.69502675,0.00019999,2]
[359589190,1746167445794,-1183.54,0.00019999,2]
[359589191,1746167445803,-450.0,0.00019999,2]
[359589192,1746167445812,-450.0,0.00019999,2]
[359589193,1746167445822,-828.62,0.00019999,2]
[359589194,1746167445831,-450.0,0.00019999,2]
[359589195,1746167445840,-450.0,0.00019999,2]
[359589196,1746167445850,-450.0,0.00019999,2]
[359589197,1746167445859,-527.18318092,0.00019999,2]
[359589198,1746167445868,-471.7155258,0.00019999,2]
[359589199,1746167445878,-9746.2,0.00019999,2]
[359589200,1746167445888,-541.4492389,0.00019999,2]
[359589201,1746167445898,-665.98,0.00019999,2]
[359589202,1746167445908,-497.8,0.00019999,2]
[359589203,1746167445919,-450.0,0.00019999,2]
[359589204,1746167445929,-450.0,0.00019999,2]
[359589205,1746167445938,-450.0,0.00019999,2]
[359589206,1746167445947,-851.89,0.00019999,2]
[359589207,1746167445960,-5064.8,0.00019999,2]
[359589208,1746167445969,-450.0,0.00019999,2]
[359589209,1746167445979,-450.0,0.00019999,2]
[359589210,1746167445988,-479.01773472,0.00019999,2]
[359589211,1746167445997,-450.0,0.00019999,2]
[359589212,1746167446007,-1667.67,0.00019999,2]
[359589213,1746167446017,-450.0,0.00019999,2]
[359589214,1746167446026,-13174.92,0.00019999,2]
[359589215,1746167446035,-2884.85,0.00019999,2]
[359589216,1746167446045,-621.58,0.00019999,2]
[359589217,1746167446056,-857.35,0.00019999,2]
[359589218,1746167446066,-770.21,0.00019999,2]
[359589219,1746167446078,-450.0,0.00019999,2]
[359589220,1746167446088,-807.1,0.00019999,2]
[359589221,1746167446098,-477.03531808,0.00019999,2]
[359589222,1746167446109,-531.58,0.00019999,2]
[359589223,1746167446118,-1137.34,0.00019999,2]
[359589224,1746167446129,-1557.57,0.00019999,2]
[359589225,1746167446138,-24641.14,0.00019999,2]
[359589226,1746167446148,-884.31,0.00019999,2]
[359589227,1746167446158,-935.81,0.00019999,2]
[359589228,1746167446167,-450.0,0.00019999,2]
[359589229,1746167446179,-516.32663185,0.00019999,2]
[359589230,1746167446188,-1307.58,0.00019999,2]
[359589231,1746167446198,-811.94,0.00019999,2]
[359589232,1746167446207,-582.97,0.00019999,2]
[359589233,1746167446217,-479.10774645,0.00019999,2]
[359589234,1746167446227,-450.0,0.00019999,2]
[359589235,1746167446236,-483.42226741,0.00019999,2]
[359589236,1746167446247,-479.21627206,0.00019999,2]
[359589237,1746167446256,-450.0,0.00019999,2]
[359589238,1746167446267,-475.04609516,0.00019999,2]
[359589239,1746167446276,-661.61,0.00019999,2]
[359589240,1746167446286,-450.0,0.00019999,2]
[359589241,1746167446296,-240.93019251,0.00019999,2]
[359589242,1746167446307,-479.20537631,0.00019999,2]
[359589243,1746167446317,-450.0,0.00019999,2]
[359589244,1746167446327,-1061.94,0.00019999,2]
[359589245,1746167446337,-525.39989279,0.00019999,2]
[359589246,1746167446346,-479.60042015,0.00019999,2]
[359589247,1746167446355,-450.0,0.00019999,2]
[359589248,1746167446365,-475.11317135,0.00019999,2]
[359589249,1746167446374,-450.0,0.00019999,2]
[359589250,1746167446383,-450.0,0.00019999,2]
[359589251,1746167446393,-450.0,0.00019999,2]
[359589252,1746167446403,-1590.23,0.00019999,2]
[359589253,1746167446412,-564.58294053,0.00019999,2]
[359589254,1746167446422,-475.07523351,0.00019999,2]